Cogmind - Beta 17 @@@ ROGUE MODE // 2026.07.14 @ 04:13:50 Player: TheSkyeDoctor Result: Destroyed by Triborg with Siege Cannon Performance ------------- Evolutions (0) 0 Regions Visited (3) 600 Robots Destroyed (9) 45 Value Destroyed (134) 134 Prototype IDs (13) 260 Alien Tech Used (0) 0 Bonus (5560) 5560 TOTAL SCORE: 6599 Bonus ------- Follower Combat Kills 60 Prayed to X0-1V1 5000 Major X0-1V1 Interference 200 Registered with UFD 300 Cogmind --------- Core Integrity 0/250 Matter 290/300 Energy 80/100 System Corruption 0% Temperature Cool (0) Movement Treading (360) Ox11 Location -8/Scraptown Parts ------- > --- POWER (1) -------- (None) > --- PROPULSION (2) --- Overtuned Treads > --- UTILITY (2) ------ Humpback > --- WEAPON (2) ------- Heavy Plasma Cannon Makeshift Spear > --- INVENTORY (35) --- Subdweller Power Source Light Treads Overtuned Treads Scrap Suit Scrap Suit Small Storage Unit High-capacity Matter Pod (200) Improved Terrain Scanner 0b10 Decoder Chip [Scout] Improved Targeting Computer Hardened Light Armor Plating Improved Medium Armor Plating Improved Hacking Suite System Shield A0-MCA's Component Scanner Master Drone Bay (1/1) Scrapoid Pod X0-1V1's Piety Tracker Thermic Laser Assault Rifle Battle Rifle Barrage Gun Shock Bomb Launcher Grenade Launcher Plasma Cutter CPS Tube (2) Peak State ------------ > --- POWER ------------ Deuterium Engine > --- PROPULSION ------- Armored Treads Improved Medium Treads > --- UTILITY ---------- Humpback > --- WEAPON ----------- Heavy Plasma Cannon Makeshift Spear > --- INVENTORY -------- Subdweller Power Source Light Treads Overtuned Treads Overtuned Treads Wheel Scrap Suit Scrap Suit Small Storage Unit High-capacity Matter Pod Improved Terrain Scanner 0b10 Decoder Chip [Scout] Improved Targeting Computer Hardened Light Armor Plating Improved Medium Armor Plating Improved Hacking Suite System Shield A0-MCA's Component Scanner Master Drone Bay Scrapoid Pod X0-1V1's Piety Tracker Thermic Laser Assault Rifle Battle Rifle Barrage Gun Shock Bomb Launcher Grenade Launcher Plasma Cutter CPS Tube [Rating: 33] Favorites ----------- Power Ion Engine Engine Ion Engine Propulsion Armored Treads Treads Armored Treads Wheel Wheel Utility Humpback Device X0-1V1's Piety Tracker Storage Humpback Weapon Battle Rifle Energy Gun Medium Laser Energy Cannon Heavy Plasma Cannon Ballistic Gun Battle Rifle Piercing Weapon Makeshift Spear Build | -11 -10 -10 -8 ------- Run | Yrd Mat Sub Scr Slots Evolved . | . . . . Power . | . . . . Propulsion . | . . . . Utility . | . . . . Weapon . | . . . . Parts Attached 18 | 8 . 2 8 Power 3 | 2 . . 1 Engine 3 | 2 . . 1 Core . | . . . . Reactor . | . . . . Propulsion 6 | 2 . . 4 Treads 5 | 2 . . 3 Leg . | . . . . Wheel 1 | . . . 1 Hover . | . . . . Flight . | . . . . Utility 4 | 2 . 1 1 Device 2 | 1 . 1 . Storage 2 | 1 . . 1 Processor . | . . . . Hackware . | . . . . Protection . | . . . . Artifact . | . . . . Weapon 5 | 2 . 1 2 Energy Gun 1 | 1 . . . Energy Cannon 1 | . . . 1 Ballistic Gun 2 | 1 . 1 . Ballistic Cannon . | . . . . Launcher . | . . . . Special Weapon . | . . . . Impact Weapon . | . . . . Slashing Weapon . | . . . . Piercing Weapon 1 | . . . 1 Special Melee Weapon . | . . . . Unidentified Prototypes 1 | . . 1 . Parts Lost 3 | . . 1 2 Power 1 | . . . 1 Propulsion 1 | . . . 1 Utility 1 | . . 1 . Weapon . | . . . . Highest Loss Streak 2 | . . 1 2 To Critical Strikes 1 | . . . 1 Average Backups 14 | 1 3 5 15 Power 1 | . 1 1 1 Propulsion 1 | . 1 1 1 Utility 7 | . 1 1 8 Weapon 3 | . . 1 3 Tool/Special . | . . . . Unused Backups 22 | . . . 22 Power 1 | . . . 1 Propulsion 1 | . . . 1 Utility 13 | . . . 13 Weapon 4 | . . . 4 Tool/Special 3 | . . . 3 Average Slot Usage (%) 87 | . 100 97 86 Engine 13 | . 14 14 13 Treads 27 | . 28 28 27 Device 2 | . 14 11 1 Storage 14 | . 14 14 14 Energy Gun 1 | . 14 14 . Energy Cannon 12 | . . . 13 Ballistic Gun 13 | . 14 14 13 Peak Build Rating 33 | 7 8 21 33 Average Rating 20 | 5 7 11 21 On Entrance 9 | . 7 8 21 Avg Prop Armor Cover (%) . | . . . . Naked Turns . | . . . . Heaviest Build 221 | 15 15 15 221 Greatest Support 50 | 40 40 40 50 Greatest Overweight (x) 21 | . . . 21 Average Overweight (x) 2 | . . . 3 Largest Inventory Capacity 35 | 8 8 8 35 Average Capacity 30 | 7 8 8 32 Most Carried 31 | 3 4 7 31 Average Carried 15 | 1 3 5 16 Final Capacity 35 | 8 8 8 35 Final Carried 29 | 3 4 6 29 Class Distribution -------------------- 83% | Hauler-Mutant 16% | Mutant Dominant Class ---------------- Mutant | -10/Materials Mutant | -10/Subcaves Hauler-Mutant | -8/Scraptown Resources | -11 -10 -10 -8 ----------- Run | Yrd Mat Sub Scr Matter Collected 633 | 301 12 60 260 Remotely . | . . . . Salvage Created 252 | 118 12 122 . Parts 25 | 10 2 13 . Haulers Intercepted . | . . . . Recyclers Shooed . | . . . . Parts Field Recycled . | . . . . Retrieved Matter . | . . . . Parts Self-Destructed 9 | . . 9 . Prevented . | . . . . Parts Restored . | . . . . Kills | -11 -10 -10 -8 ------- Run | Yrd Mat Sub Scr Combat Hostiles Destroyed 4 | . . 4 . Guns 4 | . . 4 . Classes Destroyed 4 | 2 . 2 . Tunneler 4 | 3 1 . . Recycler 1 | 1 . . . Swarmer 2 | . . 2 . Subdweller 2 | . . 2 . Best Kill Streak 4 | 4 1 2 . Combat Bots Only 2 | . . 2 . Max Kills in Single Turn 2 | 2 1 1 . Gunslinging . | . . . . Exploded . | . . . . Melee . | . . . . Uniques/NPCs Destroyed . | . . . . Combat | -11 -10 -10 -8 -------- Run | Yrd Mat Sub Scr Hostile Shots Fired 75 | . . 19 56 Missed 12 | . . 4 8 Hits 63 | . . 15 48 Melee 14 | . . . 14 Projectile 49 | . . 15 34 Critical Strikes 4 | . . 1 3 Damage Taken 1040 | . 8 236 796 Core 263 | . . 15 248 Absorbed by Shields . | . . . . Regen/Repaired (Parts) 426 | . . . 426 Core Remaining (%) 100 | 100 . . . Volleys Fired 26 | 7 4 15 . Largest 2 | 2 2 2 . Hottest 75 | 70 70 75 . Shots Fired 52 | 14 8 30 . Gun 52 | 14 8 30 . Cannon . | . . . . Launcher . | . . . . Special . | . . . . Kinetic 26 | 7 4 15 . Thermal 26 | 7 4 15 . Explosive . | . . . . Electromagnetic . | . . . . Robot Hit Streak 9 | 4 4 9 . Robot Miss Streak 2 | 2 2 2 . Penetration Max . | . . . . Secondary Targets . | . . . . Shots Hit Robots 37 | 9 5 23 . Core Hits 14 | 5 1 8 . Critical Kills . | . . . . Critical Parts Destroyed . | . . . . Critical Strikes 1 | . . 1 . Destroy 1 | . . 1 . Melee Attacks 2 | . . . 2 Impact . | . . . . Slashing . | . . . . Piercing 2 | . . . 2 Sneak Attacks . | . . . . Combat Hostiles . | . . . . Follow-up Attacks . | . . . . Damage Inflicted 482 | 130 60 292 . Guns 482 | 130 60 292 . Cannons . | . . . . Explosions . | . . . . Melee . | . . . . Ramming . | . . . . Kinetic 259 | 80 36 143 . Thermal 223 | 50 24 149 . Explosive . | . . . . Electromagnetic . | . . . . Impact . | . . . . Slashing . | . . . . Piercing . | . . . . Highest Corruption . | . . . . Average Corruption . | . . . . Corruption Purged . | . . . . Corruption Blocked . | . . . . Overload Shots . | . . . . Overflow Damage . | . . . . Projectiles . | . . . . Explosions . | . . . . Melee . | . . . . Knockbacks . | . . . . Impact . | . . . . Kinetic . | . . . . Secondary . | . . . . Self-Inflicted Damage . | . . . . Shots . | . . . . Rammed . | . . . . Targets Rammed . | . . . . Kicked . | . . . . Crushed . | . . . . Highest Temperature 292 | 63 36 292 . Average Temperature 54 | 32 19 120 . Received Heat Transfer 363 | . . 351 12 Siege Activations . | . . . . Martial Activations . | . . . . Shielding Activations . | . . . . Robots Disrupted . | . . . . Combat Hostiles . | . . . . Robots Corrupted . | . . . . Combat Hostiles . | . . . . Parts Fried . | . . . . Impact Corruptions . | . . . . Robots Melted . | . . . . Combat Hostiles . | . . . . Parts Melted . | . . . . Heat Transferred 666 | 148 74 444 . Parts Sabotaged . | . . . . Parts Stolen 2 | . . . 2 Parts Stripped . | . . . . Power Chain Reactions . | . . . . Alert | -11 -10 -10 -8 ------- Run | Yrd Mat Sub Scr Maximum Alert Level . | . . . . Low Security (%) 100 | 100 100 . . Level 1 . | . . . . Level 2 . | . . . . Level 3 . | . . . . Level 4 . | . . . . Level 5 . | . . . . High Security . | . . . . Max Security . | . . . . Peak Influence 20 | 20 . . . Initial . | . . . . Average 1 | 2 . . . Influence Increases 65 | 20 5 40 . Destroy 0b10 Robot/C 40 | . . 40 . Destroy 0b10 Robot/NC 25 | 20 5 . . Influence Decreases 65 | 20 5 40 . Time Decay 65 | 20 5 40 . Squads Dispatched . | . . . . Investigation . | . . . . Extermination . | . . . . Reinforcement . | . . . . Assault . | . . . . Garrison . | . . . . Intercept . | . . . . Searches Triggered . | . . . . Construction Impeded . | . . . . Haulers Reinforced . | . . . . Active Scanning Responses . | . . . . Cargo Convoy Interrupts . | . . . . Stealth | -11 -10 -10 -8 --------- Run | Yrd Mat Sub Scr Distress Signals . | . . . . Communications Jammed . | . . . . Distress Signals . | . . . . Times Spotted 30 | . 2 8 20 Peak Tracking Total 40 | . 1 3 40 Tactical Retreats . | . . . . Traps | -11 -10 -10 -8 ------- Run | Yrd Mat Sub Scr Traps Triggered . | . . . . Indirectly . | . . . . Trap Hack Attempts . | . . . . Triggered . | . . . . Disarmed . | . . . . Reprogrammed . | . . . . Reused . | . . . . Traps Extracted . | . . . . Installed . | . . . . Triggered . | . . . . Machines | -11 -10 -10 -8 ---------- Run | Yrd Mat Sub Scr Machines Disabled 1 | . . . 1 Max in Single Turn 1 | . . . 1 Machines Repaired . | . . . . Machines Dismantled . | . . . . Machines Sabotaged . | . . . . Overloaded Fab Kills . | . . . . Hacking | -11 -10 -10 -8 --------- Run | Yrd Mat Sub Scr Machines Accessed 4 | . . . 4 Terminals . | . . . . Fabricators . | . . . . Repair Stations . | . . . . Recycling Units . | . . . . Scanalyzers . | . . . . Garrison Access . | . . . . Total Hacks 9 | . . . 9 Successful 9 | . . . 9 Failed . | . . . . Catastrophic . | . . . . Database Lockouts . | . . . . Manual 1 | . 1 . . Terminals . | . . . . Fabricators . | . . . . Repair Stations . | . . . . Recycling Units . | . . . . Scanalyzers . | . . . . Garrison Access . | . . . . Terminal Hacks 9 | . . . 9 Record 8 | . . . 8 Proto ID Catalog 1 | . . . 1 Fabricator Hacks . | . . . . Repair Station Hacks . | . . . . Recycling Unit Hacks . | . . . . Scanalyzer . | . . . . Garrison Access Hacks . | . . . . Unauthorized Hacks . | . . . . Terminals . | . . . . Fabricators . | . . . . Repair Stations . | . . . . Recycling Units . | . . . . Scanalyzers . | . . . . Garrison Access . | . . . . Data Cores Recovered . | . . . . Used . | . . . . Hacking Detections . | . . . . Full Trace Events . | . . . . Feedback Events . | . . . . Feedback Blocked . | . . . . Robot Schematics Acquired . | . . . . Robots Built . | . . . . Authchips . | . . . . Time . | . . . . Total Robot Build Rating . | . . . . Part Schematics Acquired . | . . . . Parts Built . | . . . . Authchips . | . . . . Time . | . . . . Total Part Build Rating . | . . . . Part Studies Acquired . | . . . . Parts Repaired . | . . . . Time . | . . . . Parts Recycled . | . . . . Recycled Matter . | . . . . Retrieved Matter . | . . . . Retrieved Components . | . . . . Parts Scanalyzed . | . . . . Part Schematics Acquired . | . . . . Parts Damaged . | . . . . Bothacking | -11 -10 -10 -8 ------------ Run | Yrd Mat Sub Scr Used RIF Installer . | . . . . Robots Hacked . | . . . . Non-combat . | . . . . Combat . | . . . . Robot Hacks Applied . | . . . . Relay Couplers Released . | . . . . Fabnet Peak Effective % . | . . . . Robots Rewired . | . . . . Allies Hacked . | . . . . Hacks Repelled . | . . . . Allies | -11 -10 -10 -8 -------- Run | Yrd Mat Sub Scr Total Allies 5 | . . 2 3 Largest Group 2 | . . 2 . Highest-Rated Group 10 | . . 10 . Highest-Rated Ally 5 | . . 5 . Total Orders . | . . . . Ally Attacks 22 | . . 19 3 Total Damage 191 | . . 101 90 Kills 2 | . . 2 . Allies Corrupted . | . . . . Allies Melted 2 | . . . 2 X0-1V1 Amusement Gains 110 | . 12 . 98 Good Acts 3 | . . 2 1 Bad Acts 1 | . . 1 . Intel | -11 -10 -10 -8 ------- Run | Yrd Mat Sub Scr Active Infowar (turns) 408 | 55 181 172 . Seismic 408 | 55 181 172 . Robot Analysis Total . | . . . . Derelict Logs Recovered 1 | . . . 1 Drone Launches . | . . . . Drone Recoveries . | . . . . Exploration | -11 -10 -10 -8 ------------- Run | Yrd Mat Sub Scr Turns Passed 6493 | 149 181 303 5860 Spaces Moved 1639 | 78 102 154 1305 Core 9 | 9 . . . Treads 1629 | 69 102 154 1304 Legs . | . . . . Wheels 1 | . . . 1 Hover . | . . . . Flight . | . . . . Fastest Speed 50 | 50 160 160 160 Average Speed 386 | 147 160 160 445 Slowest Speed 565 | 160 160 160 565 Overloaded Moves . | . . . . Propulsion Burnouts . | . . . . Robots Hopped . | . . . . Potential Cave-ins . | . . . . Cave-ins Triggered . | . . . . Exploration Rate (%) 37 | 4 37 23 86 Regions Visited 3 Branch Regions 2 Pre-discovered Areas . | . . . . Known Exits Taken . | . . . . Unknown Exits Taken 3 | 1 1 1 . Scrap Searched 6 | . . . 6 Spaces Dug . | . . . . Terrain Destroyed . | . . . . Melee . | . . . . Projectile . | . . . . AOE . | . . . . Terrain Rammed . | . . . . Walls Destroyed . | . . . . Machines Disabled . | . . . . Actions | -11 -10 -10 -8 --------- Run | Yrd Mat Sub Scr Total 1737 | 94 112 182 1349 Wait 17 | . 6 9 2 Move 1636 | 77 101 153 1305 Hop . | . . . . Pick Up 31 | 2 1 2 26 Fast Attach 9 | 7 . 1 1 Attach 4 | . . 1 3 Detach 2 | . . 1 1 Swap 5 | 1 . . 4 Drop 5 | . . . 5 Fire 26 | 7 4 15 . Melee 2 | . . . 2 Ram . | . . . . Kick . | . . . . Crush . | . . . . Escape Stasis . | . . . . Rewire . | . . . . Trap . | . . . . Miscellaneous . | . . . . Route ------- -11/Scrapyard -10/Materials (discovered 4 exits: [*Mat] / [*Min x2] / [*Sub]) -10/Subcaves (discovered 2 exits: *Scr x2) -8/Scraptown (discovered 1 exit: [*Fac]) History --------- Turn | Location | Event 11 | -11/Scrapyard | Discovered new exit (range 14) 150 | -11/Scrapyard | Entered Materials 151 | -10/Materials | Met a group of wandering Federalists 223 | -10/Materials | Discovered new exit (range 6) 234 | -10/Materials | Discovered new exit (range 16) 290 | -10/Materials | Discovered new exit (range 8) 303 | -10/Materials | Build established: Mutant 315 | -10/Materials | Discovered new exit (range 3) 318 | -10/Materials | Prayed at D.C.S.S. Altar Unit 331 | -10/Materials | Entered Subcaves 332 | -10/Subcaves | Continued accompanying wandering Federalists (3) 332 | -10/Subcaves | Approached by a straggling Scientist 352 | -10/Subcaves | X0-1V1 sent allied S-10 Pest (x2) 446 | -10/Subcaves | Shifting Twisted Machinery released Mak. Spear 447 | -10/Subcaves | Shifting Twisted Machinery released Battle Rifle 626 | -10/Subcaves | Scientist uncovered a shortcut to Scraptown 634 | -10/Subcaves | Entered Scraptown 1055 | -8/Scraptown | Discovered new exit (range 11) 1376 | -8/Scraptown | Scanned Subdweller tech in exchange for log data 1393 | -8/Scraptown | Learned 12 Factory zone layouts 1402 | -8/Scraptown | Build established: Hauler-Mutant 1551 | -8/Scraptown | Visited TADAMA 1704 | -8/Scraptown | Visited SPCMW 1760 | -8/Scraptown | Visited Cyclists 1901 | -8/Scraptown | Visited CR-KLE's Repair Center 1941 | -8/Scraptown | CR-KLE repaired 6 parts 2026 | -8/Scraptown | Visited IN-MT5's Study 2807 | -8/Scraptown | Visited Awakened 2920 | -8/Scraptown | Visited Cave Peace 3073 | -8/Scraptown | Visited UFD Registry 3073 | -8/Scraptown | Registered with UFD as "Boltchaser" 3355 | -8/Scraptown | Entered Cyclist Reading Room 3694 | -8/Scraptown | Visited Junk Repository 3961 | -8/Scraptown | Visited Scrap Suit Storage 3990 | -8/Scraptown | Found Scrap Suit 3996 | -8/Scraptown | Found Scrap Suit 4132 | -8/Scraptown | Visited Infowarlord's Domain 4294 | -8/Scraptown | Visited Chapter 10 4915 | -8/Scraptown | Visited Scrapoid Pod Storage 4944 | -8/Scraptown | Found Scrapoid Pod 5033 | -8/Scraptown | Visited A0-MCA Data Center 5062 | -8/Scraptown | Given a C+ rating by A0-MCA 5081 | -8/Scraptown | Found A0-MCA's Component Scanner 5160 | -8/Scraptown | Visited DA-N13 Charitable Foundation 5179 | -8/Scraptown | Found DCF Scrap (31 items) 5845 | -8/Scraptown | Visited Supply Room 6054 | -8/Scraptown | Visited Junk Repository 6278 | -8/Scraptown | Visited Science Guys 6362 | -8/Scraptown | Attacked by Scraptown defenders 6374 | -8/Scraptown | Found Master Drone Bay 6482 | -8/Scraptown | Core integrity fell below 50% 6490 | -8/Scraptown | X0-1V1 turns hostiles against one another 6494 | -8/Scraptown | Destroyed by Triborg with Siege Cannon Last Messages --------------- likely than you'd think." 06490_ X0-1V1 tampers with RD-BW3(E) IFF filter. 06490_ X0-1V1 tampers with VE-C3I(E) IFF filter. 06490_ X0-1V1 tampers with PN-L42(j) IFF filter. 06491_ RD-BW3(E) destroyed. 06492_ PN-L42(j) critical meltdown. 06492_ 5R-QP6(j): "If 7R-MNS were here you'd quickly regret everything!" 06492_ IQ-RLZ(r) follow-up attacks with Ripteeth. 06492_ W9-74P(r) follow-up attacks with Ripteeth. 06493_ VE-C3I(E) heat short circuits Ovr. Barrage Gun. 06493_ Wheel ripped off. 06493_ VE-C3I(E) overheating. 06494_ VE-C3I(E) critical meltdown. 06494_ Triborg activates siege mode. 06494_ Penetrated by Siege Slug. 06494_ X0-1V1 chortles! Map ----- +----------------------------------------------------+ | ?????????????????????????????????????????????????? | | ???????????????????????###################???####? | | ???????????????????????"""##"""##""|##"""#??## ## | | ???????????????????????"" ##""!##"" ##!!"#### # | | ??????????????????????#"" | | ??????????????????????# | | ??????????????????????####################### # | | ????????????????????????????????????????????## ## | | ?????????#############???????????????????????# #? | | ?????????#"""""""""""#???????????????????????# #? | | ?????????#""" X """""#???????????????????????# #? | | ##???????#"""" """#???????????????????????# #? | | ""#??????#"" " "#???????????????????????# #? | | "#??????#"" " """#????????????##########?# ## | | "#??????#"" """"#?############["""!!!!#?# #* | | "#??????# ""#?#=!#!!]# [##["!! "" #?# #= | | "#??????# " "" ""#?# /# = #]!## !! "" #?# #* | | "#??????#&" "" ""#?# # # ##" "" #?# # | | "#??????#" #?# ## " "#?# #! | | "#??????# "#?# ## "#?# #! | | "???????####### #####?##### ########### ###?# ## | | ####???????##### ########### ########### ##### ## | | #???????#"""" """"""""""" """""""""" """"" "" | | #???????#" [%! | | #???????#" [r | | #???????#" r@% | | #???????#" r | | #???????#" | | #?????""" """" """""""""""""""""""" | | #?????""" = """""""""""""""""""""""""" | | #?????""" TT!j["###### ################"" | | #?????""" TT j""#???? ?????????????#"" | | #?????""" j ""#???? pE ????????????#"" | | ###?#??"" ""?????" "" ???????????#"" | | ""#"#??"" ""??????[! "" ?????????###"" | | """"#??"" ""??????j* ???????###### #"" | | ""###???#" ""??????"" ????? | | ###?????#" "" ??????"??????? | | #########" ""#???????????????###### #"" | | ""#???? ?????????????###"" | | ""#???"" "??????????????#"" | | ""#??? ??????????????#"" | | ""#??? ??????????????#"" | | ""###### ################"" | | """""""""""""""""""""""""""" | | """""""""""""""""""""""""""" | | | | | | | | #""""#" | +----------------------------------------------------+ Best States ------------- Heat Dissipation 25 Energy Generation 14 Energy Capacity 275 Matter Stores 300 Matter Capacity 300 Sight Range 16 Terrain Scan Density 10 Evasion (%) 40 Recoil Reduction 2 Item Schematics ----------------- None Robot Schematics ------------------ None Fabricated ------------ Nothing Repaired ---------- Nothing Studied --------- None Alien Tech Used ----------------- None Achievements -------------- None Challenges ------------ None Game ------ Seed EnhancedLargeThruster Manual? 0 Play Time 00:19:40 Cumulative 122.5 hours Start 2026.07.14 @ 04:01:50 End 2026.07.14 @ 04:13:50 Sessions 1 Manual Loads 0 Difficulty Rogue Special Mode None Game No. 259 Rogue 259 Adventurer 0 Explorer 0 Win Type - Total 0 Types 0/0/0/0/0/0/0/0/0/0 Lore% 53 Gallery% 52 Achievement% 41 Wizard Run 0 Options --------- Layout 2 ASCII 0 Keyboard 1 Movement Arrows Keybinds 0 Fullscreen 1 Font 24/Smallcaps Map View 50x44 Zoom Use 0% Tactical HUD 1 Map Filters NONE Filters NONE Steam 1 RUN: 4d4db0a3-d1a5-4d31-aa8b-497f351a1ece